[Event "*** SCC Grand Prix: Titled Tuesday Blitz"]
[Site "Chess.com"]
[Date "2020.07.21"]
[Round "2"]
[White "TotsukaBlade"]
[Black "chito89"]
[Result "1/2-1/2"]
[WhiteElo "2359"]
[BlackElo "2767"]
[TimeControl "180+1"]
[EndTime "10:19:40 PDT"]
[Termination "Game drawn by repetition"]

1. e4 {[%clk 0:03:00.9]} 1... c5 {[%clk 0:02:58.5]} 2. Nf3 {[%clk 0:03:00.3]}
2... e6 {[%clk 0:02:56.6]} 3. c3 {[%clk 0:02:58.6]} 3... Nf6 {[%clk 0:02:54]} 4.
e5 {[%clk 0:02:58.8]} 4... Nd5 {[%clk 0:02:54.3]} 5. d4 {[%clk 0:02:58.8]} 5...
cxd4 {[%clk 0:02:53.9]} 6. cxd4 {[%clk 0:02:59.1]} 6... d6 {[%clk 0:02:53.2]} 7.
Bc4 {[%clk 0:02:59.4]} 7... Nc6 {[%clk 0:02:40]} 8. O-O {[%clk 0:02:53.8]} 8...
Nb6 {[%clk 0:02:35.7]} 9. Bb3 {[%clk 0:02:36.9]} 9... dxe5 {[%clk 0:02:27.2]}
10. dxe5 {[%clk 0:02:30.7]} 10... Qxd1 {[%clk 0:02:26.1]} 11. Rxd1 {[%clk
0:02:31.6]} 11... Bd7 {[%clk 0:02:08]} 12. Nc3 {[%clk 0:02:31.1]} 12... Na5
{[%clk 0:01:43.8]} 13. Bc2 {[%clk 0:02:26.1]} 13... Rc8 {[%clk 0:01:34.9]} 14.
Be4 {[%clk 0:02:19.7]} 14... Bb4 {[%clk 0:01:30.4]} 15. Ne2 {[%clk 0:02:03.5]}
15... Bc6 {[%clk 0:01:13.6]} 16. Bxc6+ {[%clk 0:02:02.7]} 16... Nxc6 {[%clk
0:01:14.5]} 17. a3 {[%clk 0:02:02.4]} 17... Be7 {[%clk 0:01:11.5]} 18. Ned4
{[%clk 0:01:54.3]} 18... a6 {[%clk 0:01:07.2]} 19. Bf4 {[%clk 0:01:35.4]} 19...
Nd5 {[%clk 0:01:01.9]} 20. Bg3 {[%clk 0:01:32.8]} 20... O-O {[%clk 0:00:58.5]}
21. Rac1 {[%clk 0:01:20.3]} 21... Na5 {[%clk 0:00:57.1]} 22. Nd2 {[%clk
0:01:15.1]} 22... Bg5 {[%clk 0:00:55.2]} 23. Rxc8 {[%clk 0:01:08.3]} 23... Rxc8
{[%clk 0:00:56.1]} 24. Ne4 {[%clk 0:01:08.8]} 24... Rc1 {[%clk 0:00:50.2]} 25.
Rxc1 {[%clk 0:00:59.4]} 25... Bxc1 {[%clk 0:00:51.1]} 26. b4 {[%clk 0:00:50.4]}
26... Nc6 {[%clk 0:00:50.8]} 27. Nxc6 {[%clk 0:00:48.3]} 27... bxc6 {[%clk
0:00:51.7]} 28. Nc5 {[%clk 0:00:48.7]} 28... Bxa3 {[%clk 0:00:50.7]} 29. Nxa6
{[%clk 0:00:48]} 29... Nxb4 {[%clk 0:00:50]} 30. Nxb4 {[%clk 0:00:42]} 30...
Bxb4 {[%clk 0:00:50.9]} 31. Bf4 {[%clk 0:00:41.2]} 31... Bc3 {[%clk 0:00:45.2]}
32. Kf1 {[%clk 0:00:41]} 32... Bd4 {[%clk 0:00:44.9]} 33. Ke2 {[%clk 0:00:40.7]}
33... Kf8 {[%clk 0:00:45.1]} 34. f3 {[%clk 0:00:40.6]} 34... Ke7 {[%clk
0:00:42.4]} 35. Kd3 {[%clk 0:00:40.9]} 35... Bb2 {[%clk 0:00:42.6]} 36. Kc4
{[%clk 0:00:40.7]} 36... Kd7 {[%clk 0:00:40.6]} 37. Kc5 {[%clk 0:00:38.1]} 37...
Kc7 {[%clk 0:00:38.7]} 38. Bg3 {[%clk 0:00:34.5]} 38... Bc1 {[%clk 0:00:38.4]}
39. h3 {[%clk 0:00:32.5]} 39... Be3+ {[%clk 0:00:37.5]} 40. Kc4 {[%clk 0:00:33]}
40... Kb6 {[%clk 0:00:37.9]} 41. Be1 {[%clk 0:00:31.7]} 41... c5 {[%clk
0:00:37.9]} 42. Bc3 {[%clk 0:00:30.3]} 42... g5 {[%clk 0:00:33.5]} 43. Bb2
{[%clk 0:00:26.5]} 43... h5 {[%clk 0:00:25.2]} 44. Bc3 {[%clk 0:00:25.6]} 44...
h4 {[%clk 0:00:23.1]} 45. Bb2 {[%clk 0:00:20.4]} 45... Ka5 {[%clk 0:00:23.3]}
46. Ba3 {[%clk 0:00:20.1]} 46... Bd4 {[%clk 0:00:18.9]} 47. Bxc5 {[%clk
0:00:19.8]} 47... Bxe5 {[%clk 0:00:19.2]} 48. Be7 {[%clk 0:00:19.6]} 48... f6
{[%clk 0:00:19.4]} 49. Kd3 {[%clk 0:00:19.3]} 49... Kb5 {[%clk 0:00:19.3]} 50.
Ke4 {[%clk 0:00:19.9]} 50... Kc4 {[%clk 0:00:18.9]} 51. Bd8 {[%clk 0:00:19.8]}
51... Kc3 {[%clk 0:00:18.7]} 52. Ke3 {[%clk 0:00:20.2]} 52... Kc2 {[%clk
0:00:18.7]} 53. Ke2 {[%clk 0:00:20.7]} 53... Bd4 {[%clk 0:00:18.5]} 54. Be7
{[%clk 0:00:20.6]} 54... Kc3 {[%clk 0:00:18]} 55. Bd8 {[%clk 0:00:20.5]} 55...
Kc4 {[%clk 0:00:16.4]} 56. Be7 {[%clk 0:00:20.4]} 56... Kd5 {[%clk 0:00:17.3]}
57. Kd3 {[%clk 0:00:20.2]} 57... Ba1 {[%clk 0:00:15.3]} 58. Bd8 {[%clk
0:00:19.4]} 58... Ke5 {[%clk 0:00:16.2]} 59. Bc7+ {[%clk 0:00:19.6]} 59... Kf5
{[%clk 0:00:16.5]} 60. Ke3 {[%clk 0:00:20.1]} 60... Be5 {[%clk 0:00:16.5]} 61.
Ba5 {[%clk 0:00:20.2]} 61... Bd6 {[%clk 0:00:17.4]} 62. Bb6 {[%clk 0:00:18.8]}
62... Bh2 {[%clk 0:00:15.6]} 63. Bd8 {[%clk 0:00:17.1]} 63... Bg1+ {[%clk
0:00:15.7]} 64. Ke2 {[%clk 0:00:17.6]} 64... Bd4 {[%clk 0:00:15.6]} 65. Bc7
{[%clk 0:00:17.3]} 65... e5 {[%clk 0:00:14.9]} 66. Bd8 {[%clk 0:00:16.1]} 66...
Bc5 {[%clk 0:00:14]} 67. Kf1 {[%clk 0:00:14.3]} 67... Ke6 {[%clk 0:00:13.2]} 68.
Ke2 {[%clk 0:00:14.3]} 68... Be7 {[%clk 0:00:14.1]} 69. Ba5 {[%clk 0:00:13.5]}
69... f5 {[%clk 0:00:15]} 70. Bd2 {[%clk 0:00:13.1]} 70... Kd5 {[%clk
0:00:15.9]} 71. Kd3 {[%clk 0:00:12.9]} 71... e4+ {[%clk 0:00:14.5]} 72. fxe4+
{[%clk 0:00:13.5]} 72... fxe4+ {[%clk 0:00:15.4]} 73. Ke2 {[%clk 0:00:13.6]}
73... Bf6 {[%clk 0:00:12.8]} 74. Be3 {[%clk 0:00:13.3]} 74... Ke5 {[%clk
0:00:12.7]} 75. Bc1 {[%clk 0:00:12.8]} 75... Kf5 {[%clk 0:00:13.6]} 76. Ke3
{[%clk 0:00:12.3]} 76... Be5 {[%clk 0:00:14.5]} 77. Ke2 {[%clk 0:00:11.4]} 77...
Bd6 {[%clk 0:00:13.9]} 78. Bb2 {[%clk 0:00:11.1]} 78... Be5 {[%clk 0:00:13.5]}
79. Bc1 {[%clk 0:00:11.3]} 79... Bf4 {[%clk 0:00:14.4]} 80. Ba3 {[%clk
0:00:10.7]} 80... Be5 {[%clk 0:00:14.3]} 81. Bc1 {[%clk 0:00:10.3]} 1/2-1/2

[Event "*** SCC Grand Prix: Titled Tuesday Blitz"]
[Site "Chess.com"]
[Date "2020.07.21"]
[Round "2"]
[White "Crazy_girl99"]
[Black "Virgo15"]
[Result "1-0"]
[WhiteElo "2486"]
[BlackElo "2677"]
[TimeControl "180+1"]
[EndTime "10:19:49 PDT"]
[Termination "Crazy_girl99 won by checkmate"]

1. e4 {[%clk 0:02:57.5]} 1... e6 {[%clk 0:02:59.3]} 2. d4 {[%clk 0:02:56.7]}
2... d5 {[%clk 0:02:59.7]} 3. Nd2 {[%clk 0:02:56.4]} 3... Nc6 {[%clk 0:02:57.9]}
4. Ngf3 {[%clk 0:02:53.2]} 4... Nf6 {[%clk 0:02:57.4]} 5. e5 {[%clk 0:02:53.3]}
5... Nd7 {[%clk 0:02:57.9]} 6. Bb5 {[%clk 0:02:53.6]} 6... a6 {[%clk 0:02:57.4]}
7. Bxc6 {[%clk 0:02:53]} 7... bxc6 {[%clk 0:02:58.3]} 8. O-O {[%clk 0:02:49.5]}
8... Be7 {[%clk 0:02:57.5]} 9. Re1 {[%clk 0:02:48.7]} 9... O-O {[%clk
0:02:57.1]} 10. c3 {[%clk 0:02:46.5]} 10... c5 {[%clk 0:02:57]} 11. Nf1 {[%clk
0:02:45]} 11... cxd4 {[%clk 0:02:52.9]} 12. cxd4 {[%clk 0:02:41.7]} 12... c5
{[%clk 0:02:52.5]} 13. Ng3 {[%clk 0:02:36.4]} 13... a5 {[%clk 0:02:43.6]} 14.
Bf4 {[%clk 0:02:28.9]} 14... Ba6 {[%clk 0:02:41.1]} 15. Rc1 {[%clk 0:02:28.6]}
15... Rb8 {[%clk 0:02:33.5]} 16. Qd2 {[%clk 0:02:24.8]} 16... c4 {[%clk
0:02:30.3]} 17. a3 {[%clk 0:01:53.7]} 17... Qb6 {[%clk 0:02:23.3]} 18. Rc2
{[%clk 0:01:49.2]} 18... Bb5 {[%clk 0:02:19]} 19. Rb1 {[%clk 0:01:42.3]} 19...
Ba4 {[%clk 0:02:15.5]} 20. Rcc1 {[%clk 0:01:42]} 20... Rfc8 {[%clk 0:02:02.5]}
21. h4 {[%clk 0:01:41.2]} 21... Qb3 {[%clk 0:01:41]} 22. Qxa5 {[%clk 0:01:22.7]}
22... Qb5 {[%clk 0:01:20.2]} 23. Qd2 {[%clk 0:01:11.5]} 23... Bb3 {[%clk
0:01:08.8]} 24. h5 {[%clk 0:01:10.7]} 24... Ba2 {[%clk 0:01:07.7]} 25. Ra1
{[%clk 0:01:10.3]} 25... Qxb2 {[%clk 0:01:03]} 26. Rxa2 {[%clk 0:01:08.4]} 26...
Qxd2 {[%clk 0:00:57.7]} 27. Bxd2 {[%clk 0:01:04.9]} 27... Rb3 {[%clk 0:00:52.2]}
28. Rc3 {[%clk 0:01:02.4]} 28... Rb1+ {[%clk 0:00:41.1]} 29. Kh2 {[%clk
0:01:01.8]} 29... Nb6 {[%clk 0:00:40.5]} 30. a4 {[%clk 0:00:59.5]} 30... Bb4
{[%clk 0:00:39]} 31. Rc1 {[%clk 0:00:58.9]} 31... Rxc1 {[%clk 0:00:35.7]} 32.
Bxc1 {[%clk 0:00:59.8]} 32... Ra8 {[%clk 0:00:33.4]} 33. a5 {[%clk 0:00:44.5]}
33... Rxa5 {[%clk 0:00:26.5]} 34. Rxa5 {[%clk 0:00:44]} 34... Bxa5 {[%clk
0:00:27.4]} 35. Ne2 {[%clk 0:00:43.3]} 35... Na4 {[%clk 0:00:26.8]} 36. g4
{[%clk 0:00:34.4]} 36... f6 {[%clk 0:00:26.4]} 37. Kg3 {[%clk 0:00:33.3]} 37...
Kf7 {[%clk 0:00:26.3]} 38. Kf4 {[%clk 0:00:33.3]} 38... h6 {[%clk 0:00:26.7]}
39. Ke3 {[%clk 0:00:32.5]} 39... Ke7 {[%clk 0:00:22]} 40. Ba3+ {[%clk
0:00:31.6]} 40... Kf7 {[%clk 0:00:21.6]} 41. Nf4 {[%clk 0:00:28.9]} 41... Nc3
{[%clk 0:00:20.2]} 42. exf6 {[%clk 0:00:19.2]} 42... gxf6 {[%clk 0:00:19.9]} 43.
Nh4 {[%clk 0:00:11]} 43... Ne4 {[%clk 0:00:17.6]} 44. Ne2 {[%clk 0:00:07.1]}
44... Bd2+ {[%clk 0:00:17]} 45. Kf3 {[%clk 0:00:07.4]} 45... Ng5+ {[%clk
0:00:13.2]} 46. Kg2 {[%clk 0:00:07.1]} 46... Ne4 {[%clk 0:00:11.6]} 47. Bc1
{[%clk 0:00:06.2]} 47... c3 {[%clk 0:00:11.3]} 48. Nf3 {[%clk 0:00:05.1]} 48...
Ke7 {[%clk 0:00:07.2]} 49. Ba3+ {[%clk 0:00:04.8]} 49... Kd7 {[%clk 0:00:06.5]}
50. Kf1 {[%clk 0:00:03.2]} 50... Kc6 {[%clk 0:00:06.4]} 51. Nc1 {[%clk
0:00:02.1]} 51... Kb5 {[%clk 0:00:06.1]} 52. Ke2 {[%clk 0:00:02.6]} 52... Bf4
{[%clk 0:00:05.1]} 53. Nd3 {[%clk 0:00:02.7]} 53... Bg5 {[%clk 0:00:03.8]} 54.
Bc1 {[%clk 0:00:03.2]} 54... Bxc1 {[%clk 0:00:03.2]} 55. Nxc1 {[%clk 0:00:03.1]}
55... Kc4 {[%clk 0:00:04.1]} 56. Nd3 {[%clk 0:00:02.3]} 56... c2 {[%clk
0:00:04.2]} 57. Nfe1 {[%clk 0:00:02.6]} 57... Kc3 {[%clk 0:00:04.3]} 58. Nc1
{[%clk 0:00:03.1]} 58... Kb2 {[%clk 0:00:04.4]} 59. Ned3+ {[%clk 0:00:03.5]}
59... Kc3 {[%clk 0:00:04.8]} 60. Na2+ {[%clk 0:00:03.3]} 60... Kb3 {[%clk
0:00:03.4]} 61. Nac1+ {[%clk 0:00:04.2]} 61... Kc3 {[%clk 0:00:03.8]} 62. f3
{[%clk 0:00:05.1]} 62... Kxd4 {[%clk 0:00:04.2]} 63. Na2 {[%clk 0:00:05.8]}
63... Nc3+ {[%clk 0:00:04.1]} 64. Nxc3 {[%clk 0:00:04.9]} 64... Kxc3 {[%clk
0:00:05]} 65. f4 {[%clk 0:00:05.3]} 65... e5 {[%clk 0:00:04.9]} 66. fxe5 {[%clk
0:00:04.8]} 66... fxe5 {[%clk 0:00:05.8]} 67. Nc1 {[%clk 0:00:05.3]} 67... e4
{[%clk 0:00:06.7]} 68. g5 {[%clk 0:00:05.1]} 68... d4 {[%clk 0:00:06.7]} 69.
gxh6 {[%clk 0:00:05]} 69... d3+ {[%clk 0:00:07.1]} 70. Ke3 {[%clk 0:00:04.3]}
70... d2 {[%clk 0:00:07.5]} 71. Ne2+ {[%clk 0:00:05.2]} 71... Kb2 {[%clk
0:00:05.8]} 72. h7 {[%clk 0:00:06.1]} 72... d1=Q {[%clk 0:00:04]} 73. h8=Q+
{[%clk 0:00:06.4]} 73... Kb1 {[%clk 0:00:04.5]} 74. Qb8+ {[%clk 0:00:06.6]}
74... Ka2 {[%clk 0:00:04.2]} 75. Qa7+ {[%clk 0:00:07.1]} 75... Kb3 {[%clk
0:00:04.3]} 76. Qb6+ {[%clk 0:00:07.5]} 76... Kc4 {[%clk 0:00:04]} 77. Qc6+
{[%clk 0:00:07.8]} 77... Kb4 {[%clk 0:00:04.4]} 78. Qc3+ {[%clk 0:00:06.7]}
78... Ka4 {[%clk 0:00:03.8]} 79. Qd2 {[%clk 0:00:06]} 79... Kb3 {[%clk
0:00:02.6]} 80. Qc3+ {[%clk 0:00:05]} 80... Ka4 {[%clk 0:00:03.2]} 81. h6 {[%clk
0:00:04.4]} 81... Qh1 {[%clk 0:00:01.8]} 82. Qc4+ {[%clk 0:00:04.4]} 82... Ka3
{[%clk 0:00:01.6]} 83. Qxe4 {[%clk 0:00:04.9]} 83... Qf3+ {[%clk 0:00:02]} 84.
Qxf3 {[%clk 0:00:04.8]} 84... c1=Q+ {[%clk 0:00:02.5]} 85. Nxc1 {[%clk
0:00:05.4]} 85... Kb2 {[%clk 0:00:03.1]} 86. Ne2 {[%clk 0:00:06.1]} 86... Kc2
{[%clk 0:00:03.3]} 87. h7 {[%clk 0:00:07]} 87... Kd1 {[%clk 0:00:03.6]} 88. h8=Q
{[%clk 0:00:07.2]} 88... Kc2 {[%clk 0:00:03.5]} 89. Qc3+ {[%clk 0:00:07.8]}
89... Kb1 {[%clk 0:00:03.6]} 90. Qf1+ {[%clk 0:00:08.1]} 90... Ka2 {[%clk
0:00:03.6]} 91. Qfa1# {[%clk 0:00:08.9]} 1-0

[Event "*** SCC Grand Prix: Titled Tuesday Blitz"]
[Site "Chess.com"]
[Date "2020.07.21"]
[Round "2"]
[White "OhanyanEminChess"]
[Black "Sacbutt"]
[Result "1/2-1/2"]
[WhiteElo "2467"]
[BlackElo "2268"]
[TimeControl "180+1"]
[EndTime "10:20:00 PDT"]
[Termination "Game drawn - insufficient material"]

1. e4 {[%clk 0:02:57]} 1... d5 {[%clk 0:02:58.8]} 2. exd5 {[%clk 0:02:53.8]}
2... Qxd5 {[%clk 0:02:59.7]} 3. Nf3 {[%clk 0:02:53.5]} 3... Nf6 {[%clk
0:02:58.2]} 4. d4 {[%clk 0:02:48.3]} 4... Bg4 {[%clk 0:02:56.2]} 5. Be2 {[%clk
0:02:47]} 5... c6 {[%clk 0:02:55.6]} 6. c4 {[%clk 0:02:46.2]} 6... Qa5+ {[%clk
0:02:54.5]} 7. Nc3 {[%clk 0:02:45.5]} 7... e6 {[%clk 0:02:54]} 8. Be3 {[%clk
0:02:43.8]} 8... Bd6 {[%clk 0:02:51.3]} 9. h3 {[%clk 0:02:42.3]} 9... Bh5 {[%clk
0:02:50.3]} 10. O-O {[%clk 0:02:40.3]} 10... O-O {[%clk 0:02:48.7]} 11. a3
{[%clk 0:02:32.2]} 11... Qc7 {[%clk 0:02:41]} 12. Qc2 {[%clk 0:02:31.2]} 12...
Bg6 {[%clk 0:02:35.3]} 13. Bd3 {[%clk 0:02:29.6]} 13... Bxd3 {[%clk 0:02:31.7]}
14. Qxd3 {[%clk 0:02:30.5]} 14... Nbd7 {[%clk 0:02:31.1]} 15. Ne4 {[%clk
0:02:19.1]} 15... Nxe4 {[%clk 0:02:27.7]} 16. Qxe4 {[%clk 0:02:20]} 16... Nf6
{[%clk 0:02:26.6]} 17. Qc2 {[%clk 0:02:17.1]} 17... Bf4 {[%clk 0:02:23.6]} 18.
Rad1 {[%clk 0:02:13.9]} 18... Rad8 {[%clk 0:02:11.4]} 19. Qc1 {[%clk 0:02:08]}
19... Bxe3 {[%clk 0:02:09]} 20. Qxe3 {[%clk 0:02:08.9]} 20... b5 {[%clk
0:02:01.8]} 21. b3 {[%clk 0:02:05.1]} 21... Qa5 {[%clk 0:01:56]} 22. Ne5 {[%clk
0:01:54.7]} 22... Rc8 {[%clk 0:01:55.8]} 23. Qf3 {[%clk 0:01:42.1]} 23... bxc4
{[%clk 0:01:46.8]} 24. Nxc6 {[%clk 0:01:22.3]} 24... Qc7 {[%clk 0:01:45.6]} 25.
Ne5 {[%clk 0:01:14.5]} 25... cxb3 {[%clk 0:01:40.1]} 26. Qxb3 {[%clk 0:01:15.4]}
26... Qc3 {[%clk 0:01:37.4]} 27. Qa4 {[%clk 0:01:11]} 27... Nd5 {[%clk
0:01:19.5]} 28. Qxa7 {[%clk 0:00:52.3]} 28... Ra8 {[%clk 0:01:17.8]} 29. Qc5
{[%clk 0:00:50.1]} 29... Qxa3 {[%clk 0:01:16.1]} 30. Qxa3 {[%clk 0:00:37.2]}
30... Rxa3 {[%clk 0:01:17]} 31. Ra1 {[%clk 0:00:37.5]} 31... Rfa8 {[%clk
0:01:12.7]} 32. Rxa3 {[%clk 0:00:24.6]} 32... Rxa3 {[%clk 0:01:13.6]} 33. Rc1
{[%clk 0:00:21.2]} 33... g6 {[%clk 0:01:02.7]} 34. g3 {[%clk 0:00:18.9]} 34...
Ra4 {[%clk 0:01:01]} 35. Nf3 {[%clk 0:00:16.6]} 35... Kg7 {[%clk 0:01:00.6]} 36.
h4 {[%clk 0:00:16.5]} 36... h5 {[%clk 0:01:00]} 37. Kg2 {[%clk 0:00:16.7]} 37...
Kf6 {[%clk 0:00:59.8]} 38. Rc2 {[%clk 0:00:15.1]} 38... Ne7 {[%clk 0:00:59.7]}
39. Re2 {[%clk 0:00:14.9]} 39... Nf5 {[%clk 0:01:00]} 40. Rd2 {[%clk 0:00:15.3]}
40... Ra5 {[%clk 0:00:57]} 41. Ne5 {[%clk 0:00:14.6]} 41... Rd5 {[%clk
0:00:54.6]} 42. Nf3 {[%clk 0:00:13.7]} 42... Ke7 {[%clk 0:00:51.9]} 43. Ra2
{[%clk 0:00:12.1]} 43... Nxd4 {[%clk 0:00:47.2]} 44. Ra7+ {[%clk 0:00:12.3]}
44... Ke8 {[%clk 0:00:43.1]} 45. Ng5 {[%clk 0:00:11.9]} 45... Rf5 {[%clk
0:00:39.8]} 46. Ne4 {[%clk 0:00:10.8]} 46... Nc6 {[%clk 0:00:35.2]} 47. Nd6+
{[%clk 0:00:09.8]} 47... Kf8 {[%clk 0:00:31.4]} 48. Ra8+ {[%clk 0:00:09.4]}
48... Kg7 {[%clk 0:00:29.3]} 49. Nxf5+ {[%clk 0:00:10]} 49... exf5 {[%clk
0:00:29.7]} 50. Rc8 {[%clk 0:00:09.5]} 50... Ne5 {[%clk 0:00:30]} 51. f4 {[%clk
0:00:06.5]} 51... Ng4 {[%clk 0:00:29.7]} 52. Kf3 {[%clk 0:00:06.6]} 52... Nf6
{[%clk 0:00:29.5]} 53. Rc1 {[%clk 0:00:06.6]} 53... Ng4 {[%clk 0:00:29.4]} 54.
Ra1 {[%clk 0:00:06.9]} 54... Nf6 {[%clk 0:00:30]} 55. Ra3 {[%clk 0:00:07.3]}
55... Ne4 {[%clk 0:00:30.6]} 56. Ke2 {[%clk 0:00:06.4]} 56... Kf6 {[%clk
0:00:28.6]} 57. Ra6+ {[%clk 0:00:06.1]} 57... Kg7 {[%clk 0:00:28.5]} 58. Ra3
{[%clk 0:00:07]} 58... Kf6 {[%clk 0:00:27.8]} 59. Re3 {[%clk 0:00:06.3]} 59...
Kg7 {[%clk 0:00:24.9]} 60. Kd3 {[%clk 0:00:05.4]} 60... Nf6 {[%clk 0:00:24.5]}
61. Kd4 {[%clk 0:00:05.3]} 61... Ng4 {[%clk 0:00:24.8]} 62. Ra3 {[%clk
0:00:05.7]} 62... Nf6 {[%clk 0:00:25.3]} 63. Ke5 {[%clk 0:00:05.9]} 63... Ne4
{[%clk 0:00:25.6]} 64. Re3 {[%clk 0:00:04.9]} 64... Kf8 {[%clk 0:00:20.5]} 65.
Rb3 {[%clk 0:00:02.8]} 65... Kg7 {[%clk 0:00:20.5]} 66. Ra3 {[%clk 0:00:03]}
66... Kf8 {[%clk 0:00:20.4]} 67. Kd4 {[%clk 0:00:03.1]} 67... Kg7 {[%clk
0:00:20.7]} 68. Kc4 {[%clk 0:00:03.5]} 68... Kf6 {[%clk 0:00:21.2]} 69. Kd5
{[%clk 0:00:03.7]} 69... Kg7 {[%clk 0:00:21]} 70. Kc6 {[%clk 0:00:04]} 70... Kf6
{[%clk 0:00:21.1]} 71. Kd7 {[%clk 0:00:04.4]} 71... Kg7 {[%clk 0:00:21]} 72. Ke7
{[%clk 0:00:04.8]} 72... Nf6 {[%clk 0:00:20.5]} 73. Ra7 {[%clk 0:00:04]} 73...
Nd5+ {[%clk 0:00:20]} 74. Ke8 {[%clk 0:00:03.2]} 74... Nf6+ {[%clk 0:00:20.2]}
75. Kd8 {[%clk 0:00:03.8]} 75... Ne4 {[%clk 0:00:19.7]} 76. Ke7 {[%clk
0:00:03.4]} 76... Nxg3 {[%clk 0:00:19]} 77. Ke8 {[%clk 0:00:04.1]} 77... Ne2
{[%clk 0:00:18]} 78. Rxf7+ {[%clk 0:00:04.7]} 78... Kh6 {[%clk 0:00:18.2]} 79.
Kf8 {[%clk 0:00:02.9]} 79... Nxf4 {[%clk 0:00:15.7]} 80. Kg8 {[%clk 0:00:03.5]}
80... g5 {[%clk 0:00:15.5]} 81. Rf6+ {[%clk 0:00:03.9]} 81... Ng6 {[%clk
0:00:14.5]} 82. Rf7 {[%clk 0:00:03.4]} 82... gxh4 {[%clk 0:00:13.2]} 83. Rxf5
{[%clk 0:00:02.8]} 83... h3 {[%clk 0:00:13.2]} 84. Rf1 {[%clk 0:00:02.7]} 84...
Kg5 {[%clk 0:00:13.6]} 85. Rh1 {[%clk 0:00:03]} 85... Kh4 {[%clk 0:00:12.5]} 86.
Kg7 {[%clk 0:00:03.2]} 86... Ne5 {[%clk 0:00:12]} 87. Kf6 {[%clk 0:00:03.8]}
87... Ng4+ {[%clk 0:00:12.3]} 88. Kf5 {[%clk 0:00:03.3]} 88... Kg3 {[%clk
0:00:12.6]} 89. Kg5 {[%clk 0:00:03.1]} 89... h4 {[%clk 0:00:12.7]} 90. Rg1+
{[%clk 0:00:03.5]} 90... Kf3 {[%clk 0:00:12.7]} 91. Rxg4 {[%clk 0:00:02.9]}
91... h2 {[%clk 0:00:12.1]} 92. Rxh4 {[%clk 0:00:03.5]} 92... Kg2 {[%clk
0:00:12.7]} 93. Rg4+ {[%clk 0:00:04.2]} 93... Kf2 {[%clk 0:00:12.7]} 94. Rh4
{[%clk 0:00:03.9]} 94... Kg2 {[%clk 0:00:13.2]} 95. Kg4 {[%clk 0:00:02.6]} 95...
h1=Q {[%clk 0:00:12.9]} 96. Rxh1 {[%clk 0:00:02.6]} 96... Kxh1 {[%clk
0:00:13.8]} 1/2-1/2